Cogmind - Beta 10.2 @@@ ROGUE MODE // 2021.05.19 @ 11:08:33 Player: Teratos Result: Destroyed by G-34 Mercenary with Small Laser Performance ------------- Evolutions (0) 0 Regions Visited (2) 400 Robots Destroyed (24) 120 Value Destroyed (638) 638 Prototype IDs (0) 0 Alien Tech Used (0) 0 Bonus (0) 0 TOTAL SCORE: 1158 Bonus ------- None Cogmind --------- Core Integrity 0/250 Matter 279/300 Energy 220/250 System Corruption 0% Temperature Cool (6) Movement Walking (120) Location -10/Mines Parts ------- > --- POWER (1) -------- Ion Engine > --- PROPULSION (2) --- Aluminum Leg Aluminum Leg > --- UTILITY (2) ------ Improved Heat Sink Improved Heat Sink > --- WEAPON (2) ------- (None) > --- INVENTORY (4) ---- Ion Engine Light Ion Engine Peak State ------------ > --- POWER ------------ Ion Engine > --- PROPULSION ------- Aluminum Leg Aluminum Leg > --- UTILITY ---------- Improved Heat Sink Improved Heat Sink > --- WEAPON ----------- Light Assault Rifle Light Assault Rifle > --- INVENTORY -------- Light Ion Engine [Rating: 11] Favorites ----------- Power Light Ion Engine Engine Light Ion Engine Propulsion Light Treads Treads Light Treads Leg Aluminum Leg Utility Heat Sink Device Heat Sink Weapon Assault Rifle Energy Gun Medium Laser Ballistic Gun Assault Rifle Build | -11 -10 -10 ------- Run | Scr Mat Min Slots Evolved . | . . . Power . | . . . Propulsion . | . . . Utility . | . . . Weapon . | . . . Parts Attached 22 | 5 1 16 Power 5 | 1 . 4 Engine 5 | 1 . 4 Core . | . . . Reactor . | . . . Propulsion 6 | 2 . 4 Treads 2 | 2 . . Leg 4 | . . 4 Wheel . | . . . Hover . | . . . Flight . | . . . Utility 3 | . 1 2 Device 3 | . 1 2 Storage . | . . . Processor . | . . . Hackware . | . . . Protection . | . . . Artifact . | . . . Weapon 8 | 2 . 6 Energy Gun 5 | 1 . 4 Energy Cannon . | . . . Ballistic Gun 3 | 1 . 2 Ballistic Cannon . | . . . Launcher . | . . . Special Weapon . | . . . Impact Weapon . | . . . Slashing Weapon . | . . . Piercing Weapon . | . . . Special Melee Weapon . | . . . Unidentified Prototypes . | . . . Parts Lost 14 | . . 14 Power 2 | . . 2 Propulsion 4 | . . 4 Utility 1 | . . 1 Weapon 7 | . . 7 Highest Loss Streak 5 | . . 5 Average Slot Usage (%) 84 | . 73 85 Engine 13 | . 14 13 Treads 17 | . 28 16 Leg 8 | . . 9 Device 16 | . 2 18 Energy Gun 11 | . 14 10 Ballistic Gun 15 | . 14 15 Naked Turns . | . . . Heaviest Build 9 | 7 8 9 Greatest Support 40 | 40 40 40 Greatest Overweight (x) . | . . . Average Overweight (x) . | . . . Largest Inventory Capacity 4 | 4 4 4 Average Capacity 4 | 4 4 4 Most Carried 1 | . . 1 Average Carried . | . . . Final Capacity 4 | 4 4 4 Final Carried 2 | . . 2 Class Distribution -------------------- 64% | Mutant 35% | Scavenger-Mutant Dominant Class ---------------- Mutant | -10/Materials Mutant | -10/Mines Resources | -11 -10 -10 ----------- Run | Scr Mat Min Matter Collected 543 | 169 99 275 Remotely . | . . . Salvage Created 829 | . 99 730 Parts 46 | . 1 45 Haulers Intercepted . | . . . Recyclers Shooed . | . . . Parts Field Recycled . | . . . Retrieved Matter . | . . . Parts Self-Destructed . | . . . Prevented . | . . . Kills | -11 -10 -10 ------- Run | Scr Mat Min Combat Hostiles Destroyed 22 | . 3 19 Guns 22 | . 3 19 Classes Destroyed 6 | . 2 4 Builder 1 | . . 1 Tunneler 1 | . . 1 Recycler 1 | . . 1 Swarmer 5 | . 1 4 Grunt 16 | . 2 14 Assembled 1 | . . 1 Best Kill Streak 6 | . 2 6 Combat Bots Only 4 | . 2 4 Max Kills in Single Turn 1 | . 1 1 Gunslinging . | . . . Exploded . | . . . Melee . | . . . Uniques/NPCs Destroyed . | . . . Combat | -11 -10 -10 -------- Run | Scr Mat Min Damage Taken 1402 | . 259 1143 Core 254 | . 41 213 Absorbed by Shields . | . . . Core Remaining (%) 100 | 100 . . Volleys Fired 92 | . 15 77 Largest 2 | . 2 2 Hottest 70 | . 70 70 Shots Fired 153 | . 30 123 Gun 153 | . 30 123 Cannon . | . . . Launcher . | . . . Special . | . . . Kinetic 103 | . 15 88 Thermal 50 | . 15 35 Explosive . | . . . Electromagnetic . | . . . Robot Hit Streak 10 | . 10 8 Robot Miss Streak 3 | . 1 3 Penetration Max . | . . . Secondary Targets 3 | . 1 2 Max Gunslinging Chain 1 | . 1 1 Shots Hit Robots 107 | . 23 84 Core Hits 48 | . 4 44 Critical Hits . | . . . Critical Kills . | . . . Critical Parts Destroyed . | . . . Melee Attacks . | . . . Impact . | . . . Slashing . | . . . Piercing . | . . . Sneak Attacks . | . . . Combat Hostiles . | . . . Follow-up Attacks . | . . . Damage Inflicted 1149 | . 262 887 Guns 1149 | . 262 887 Cannons . | . . . Explosions . | . . . Melee . | . . . Ramming . | . . . Kinetic 728 | . 114 614 Thermal 421 | . 148 273 Explosive . | . . . Electromagnetic . | . . . Impact . | . . . Slashing . | . . . Piercing . | . . . Highest Corruption . | . . . Average Corruption . | . . . Corruption Purged . | . . . Overload Shots . | . . . Overflow Damage . | . . . Projectiles . | . . . Explosions . | . . . Melee . | . . . Knockbacks . | . . . Impact . | . . . Kinetic . | . . . Secondary . | . . . Self-Inflicted Damage . | . . . Shots . | . . . Rammed . | . . . Targets Rammed . | . . . Kicked . | . . . Crushed . | . . . Highest Temperature 126 | . 126 . Average Temperature 69 | . 69 . Received Heat Transfer 615 | . 114 501 Siege Activations . | . . . Robots Corrupted . | . . . Combat Hostiles . | . . . Parts Fried . | . . . Impact Corruptions . | . . . Robots Melted . | . . . Combat Hostiles . | . . . Parts Melted . | . . . Heat Transferred 1103 | . 444 659 Parts Sabotaged . | . . . Parts Stolen . | . . . Parts Stripped . | . . . Power Chain Reactions . | . . . Missiles Intercepted . | . . . Alert | -11 -10 -10 ------- Run | Scr Mat Min Peak Influence 260 | . 75 260 Initial 28 | . . 28 Average 60 | . 31 69 Maximum Alert Level 1 | . . 1 Low Security (%) 90 | 100 100 87 Level 1 9 | . . 12 Level 2 . | . . . Level 3 . | . . . Level 4 . | . . . Level 5 . | . . . High Security . | . . . Max Security . | . . . Squads Dispatched . | . . . Investigation . | . . . Extermination . | . . . Reinforcement . | . . . Assault . | . . . Garrison . | . . . Intercept . | . . . Construction Impeded . | . . . Haulers Reinforced . | . . . Stealth | -11 -10 -10 --------- Run | Scr Mat Min Distress Signals . | . . . Communications Jammed . | . . . Distress Signals . | . . . Times Spotted 28 | . 4 24 Peak Tracking Total 4 | . 4 4 Tactical Retreats 2 | . . 2 Traps | -11 -10 -10 ------- Run | Scr Mat Min Traps Triggered . | . . . Indirectly . | . . . Trap Hack Attempts . | . . . Triggered . | . . . Disarmed . | . . . Reprogrammed . | . . . Reused . | . . . Traps Extracted . | . . . Installed . | . . . Triggered . | . . . Machines | -11 -10 -10 ---------- Run | Scr Mat Min Machines Disabled . | . . . Max in Single Turn . | . . . Machines Sabotaged . | . . . Garrisons Compromised . | . . . Overloaded Fab Kills . | . . . Fab Network Shutdowns . | . . . Hacking | -11 -10 -10 --------- Run | Scr Mat Min Machines Accessed . | . . . Terminals . | . . . Fabricators . | . . . Repair Stations . | . . . Recycling Units . | . . . Scanalyzers . | . . . Garrison Access . | . . . Total Hacks . | . . . Successful . | . . . Failed . | . . . Catastrophic . | . . . Database Lockouts . | . . . Manual . | . . . Terminals . | . . . Fabricators . | . . . Repair Stations . | . . . Recycling Units . | . . . Scanalyzers . | . . . Garrison Access . | . . . Terminal Hacks . | . . . Fabricator Hacks . | . . . Repair Station Hacks . | . . . Recycling Unit Hacks . | . . . Scanalyzer . | . . . Garrison Access Hacks . | . . . Unauthorized Hacks . | . . . Terminals . | . . . Fabricators . | . . . Repair Stations . | . . . Recycling Units . | . . . Scanalyzers . | . . . Garrison Access . | . . . Data Cores Recovered . | . . . Used . | . . . Hacking Detections . | . . . Full Trace Events . | . . . Feedback Events . | . . . Feedback Blocked . | . . . Robot Schematics Acquired . | . . . Robots Built . | . . . Matter . | . . . Time . | . . . Total Robot Build Rating . | . . . Part Schematics Acquired . | . . . Parts Built . | . . . Matter . | . . . Time . | . . . Total Part Build Rating . | . . . Parts Repaired . | . . . Time . | . . . Parts Recycled . | . . . Recycled Matter . | . . . Retrieved Matter . | . . . Retrieved Components . | . . . Parts Scanalyzed . | . . . Part Schematics Acquired . | . . . Parts Damaged . | . . . Bothacking | -11 -10 -10 ------------ Run | Scr Mat Min Used RIF Installer . | . . . Robots Hacked . | . . . Non-combat . | . . . Combat . | . . . Robot Hacks Applied . | . . . Relay Couplers Released . | . . . Robots Rewired . | . . . Allies Hacked . | . . . Hacks Repelled . | . . . Allies | -11 -10 -10 -------- Run | Scr Mat Min Total Allies 3 | . . 3 Largest Group 3 | . . 3 Highest-Rated Group 40 | . . 40 Highest-Rated Ally 16 | . . 16 Total Orders . | . . . Ally Attacks 8 | . . 8 Total Damage 82 | . . 82 Kills 1 | . . 1 Allies Corrupted . | . . . Allies Melted . | . . . Intel | -11 -10 -10 ------- Run | Scr Mat Min Robot Analysis Total . | . . . Derelict Logs Recovered 2 | . . 2 Drone Launches . | . . . Drone Recoveries . | . . . Exploration | -11 -10 -10 ------------- Run | Scr Mat Min Turns Passed 1143 | 72 146 925 Spaces Moved 366 | 43 58 265 Core 3 | 3 . . Treads 226 | 40 58 128 Legs 137 | . . 137 Wheels . | . . . Hover . | . . . Flight . | . . . Fastest Speed 50 | 50 160 120 Average Speed 144 | 152 160 139 Slowest Speed 160 | 160 160 160 Overloaded Moves . | . . . Propulsion Burnouts . | . . . Robots Hopped . | . . . Cave-ins Triggered . | . . . Exploration Rate (%) 16 | 4 12 34 Regions Visited 2 Branch Regions 1 Pre-discovered Areas 1 | . . 1 Known Exits Taken . | . . . Unknown Exits Taken 2 | 1 1 . Scrap Searched . | . . . Spaces Dug . | . . . Terrain Destroyed . | . . . Melee . | . . . Projectile . | . . . AOE . | . . . Terrain Rammed . | . . . Walls Destroyed . | . . . Machines Disabled . | . . . Actions | -11 -10 -10 --------- Run | Scr Mat Min Total 831 | 47 81 703 Wait 353 | . 8 345 Move 364 | 42 57 265 Hop . | . . . Pick Up . | . . . Fast Attach 18 | 5 1 12 Attach 1 | . . 1 Detach . | . . . Swap 3 | . . 3 Drop . | . . . Fire 92 | . 15 77 Melee . | . . . Ram . | . . . Kick . | . . . Crush . | . . . Escape Stasis . | . . . Rewire . | . . . Trap . | . . . Miscellaneous . | . . . Route ------- -11/Scrapyard -10/Materials -10/Mines History --------- Turn | Location | Event 8 | -11/Scrapyard | Discovered new exit (range 15) 73 | -11/Scrapyard | Entered Materials 208 | -10/Materials | Discovered new exit (range 8) 219 | -10/Materials | Entered Mines 220 | -10/Mines | Learned location of Storage (-7) 280 | -10/Mines | Learned Materials garrison access intel 310 | -10/Mines | Build established: Mutant 323 | -10/Mines | Assisted by bots powering up and referring to "LRC-V3" 347 | -10/Mines | Learned Materials emergency access door positions 409 | -10/Mines | Excavation squad dispatched 409 | -10/Mines | A large section of the Mines collapsed 659 | -10/Mines | Excavation squad dispatched 764 | -10/Mines | Lost 3 parts (1p1n1w) 909 | -10/Mines | Excavation squad dispatched 951 | -10/Mines | Core integrity fell below 50% 996 | -10/Mines | Lost 5 parts (1p1n1u2w) 1043 | -10/Mines | Build established: Scavenger-Mutant 1123 | -10/Mines | Core integrity fell below 20% 1144 | -10/Mines | Destroyed by G-34 Mercenary with Small Laser Last Messages --------------- 01041_ Acquired 1 matter. 01047_ G-34 Mercenary destroyed. 01047_ Switching to secondary target: G-34 Mercenary. 01048_ Acquired 7 matter. 01051_ Acquired 2 matter. 01055_ G-34 Mercenary destroyed. 01056_ Acquired 2 matter. 01071_ G-34 Mercenary destroyed. 01072_ Acquired 2 matter. 01073_ T-07 Excavator destroyed. 01074_ Acquired 2 matter. 01080_ Aluminum Leg destroyed. 01083_ Acquired 2 matter. 01087_ G-34 Mercenary destroyed. 01088_ Acquired 2 matter. 01092_ Acquired Aluminum Leg. 01095_ Acquired 10 matter. 01126_ Lgt. Assault Rifle destroyed. 01135_ G-47 Trooper destroyed. 01142_ Lgt. Assault Rifle destroyed. Map ----- +----------------------------------------------------+ | | | | | | | | | | | | | | | | | | | | | | | ?????????????????????????????????????????????????? | | ?????????????????????????????????????????????????? | | ?????????????????????????????????????????????????? | | ??#####??????????????????????????????????????????? | | ?## ##?????????????????????????????????????????? | | ?# #####?????????????????????????????????????? | | ?# #?????????????????????????????????????? | | ?## ## #?????????????????????????????????????? | | ??## ### #???????????####??????????????????????? | | ??## #?#=##########?## ###????????????????????? | | ?## ####k; ; ### ##???????????????????? | | ## ##" % ;;t ! % !%! #???????????????????? | | # ### ### ## |%= !=% #???????????????????? | | ##?###?# ###! ; =[%%##???????????????????# | | ##??# #?# #?### !%@%##????????####??????? # | | ##???# #?# #???##!%===#????????## ##????? | | #????# #?# ######*!|g!##??????## #????# | | ##???# #?# =%*%!%%!#####??# #???# | | # ##??# #?#"######*%=%%!%! #### #### | | ## #### #?# #????##t=!!!%= ## * | | ?## #?? #?????##=[##= ===% | | ?## #####?# #??????###### ###*###### | | ?# ##??## ##??????????# ## ##?# #?????? | | ?# #### #??????????# ### ###??# #?????? | | ?# #??????????# #?# ##??? ????? | | ?## ##??????????# #???# """ ??? | | ??# ### ######???????????##### #???# """ #?? | | ??# #?#####???????????????????? ???# """ ? | | ??# #????????????????????????? ??# ### | | ??# #???????????????????????? ??## #####?? | | ??# #??????????????????????? ??# #?????? | | ??# #?????####?????????????? ## ##?# #?????? | | ??# ####### ##????????????? #??###??# ??????? | | ??# #????????????? #????????# ???????? | | ??########## ######????????##????????? ???????? | | ???????????## ## ##??????????????????#????????? | | ????????????## #???????????????????????????? | | ?????????????## #??????????????????????????? | | ??????????????## #??????????????????????????? | +----------------------------------------------------+ Best States ------------- Heat Dissipation 53 Energy Generation 10 Energy Capacity 250 Matter Stores 300 Matter Capacity 300 Sight Range 16 Terrain Scan Density 10 Evasion (%) 40 Recoil Reduction 2 Item Schematics ----------------- None Robot Schematics ------------------ None Fabricated ------------ Nothing Alien Tech Used ----------------- None Achievements -------------- None Challenges ------------ None Game ------ Seed ZioniteSubatomicCore Manual? 0 Play Time 00:10:50 Cumulative 63.3 hours Start 2021.05.19 @ 11:02:23 End 2021.05.19 @ 11:08:33 Sessions 1 Manual Loads 0 Difficulty Rogue Special Mode None Game No. 135 Rogue 135 Adventurer 0 Explorer 0 Win Type - Total 0 Types 0/0/0/0/0/0/0/0/0 Lore% 27 Gallery% 34 Achievement% 26 Wizard Run 0 Options --------- ASCII 0 Keyboard 0 Movement Numpad Keybinds 0 Fullscreen 1 Font 12/Smallcaps Map View 83x54 Tactical HUD 1 Map Filters NONE Filters NONE Steam 1 RUN: 6af29e02-beae-4eac-91ce-d72cee40c11f